fUSD/lending_fUSD_20240125
["ID","MTS","AMOUNT","RATE_DAILY","PERIOD"]
[312662120,1706141482659,-797.85,0.00050136,31]
[312662121,1706141482669,-500.0,0.00050136,31]
[312662122,1706141482678,-508.04,0.00050136,31]
[312662123,1706141482688,-500.0,0.00050136,31]
[312662124,1706141482698,-500.0,0.00050136,31]
[312662125,1706141482707,-500.0,0.00050136,31]
[312662126,1706141482717,-659.17,0.00050136,31]
[312662127,1706141482727,-569.44734862,0.00050136,31]
[312662128,1706141482737,-500.0,0.00050136,31]
[312662129,1706141482746,-514.92,0.00050136,31]
[312662130,1706141482755,-520.3,0.00050136,31]
[312662131,1706141482764,-717.84,0.00050136,31]
[312662132,1706141482774,-1187.72,0.00050136,31]
[312662133,1706141482784,-500.0,0.00050136,31]
[312662134,1706141482793,-563.62,0.00050136,31]
[312662135,1706141482803,-500.0,0.00050136,31]
[312662136,1706141482814,-500.0,0.00050136,31]
[312662137,1706141482823,-203.82,0.00050136,31]
[312662138,1706141482833,-500.0,0.00050136,31]
[312662139,1706141482843,-1119.03,0.00050136,2]
[312662140,1706141482852,-1126.94,0.00050136,31]
[312662141,1706141482862,-551.67,0.00050136,31]
[312662142,1706141482871,-738.6,0.00050136,31]
[312662143,1706141482880,-1035.65,0.00050136,31]
[312662144,1706141482890,-500.0,0.00050136,31]
[312662145,1706141483027,-381.72659974,0.00050136,31]
[312662146,1706141483036,-500.0,0.00050136,31]
[312662147,1706141483045,-1041.4,0.00050136,31]
[312662148,1706141483054,-500.0,0.00050136,31]
[312662149,1706141483065,-665.87,0.00050136,31]
[312662150,1706141483073,-500.0,0.00050136,31]
[312662151,1706141483083,-511.53,0.00050136,31]
[312662152,1706141483092,-500.0,0.00050136,31]
[312662153,1706141483101,-531.79,0.00050136,31]
[312662154,1706141483110,-693.29,0.00050136,31]
[312662155,1706141483119,-1258.54,0.00050136,31]
[312662156,1706141483129,-569.14,0.00050136,31]
[312662157,1706141483138,-500.0,0.00050136,31]
[312662158,1706141483147,-500.0,0.00050136,31]
[312662159,1706141483156,-500.0,0.00050136,31]
[312662160,1706141483165,-500.0,0.00050136,31]
[312662161,1706141483174,-523.57,0.00050136,31]
[312662162,1706141483183,-500.0,0.00050136,31]
[312662163,1706141483192,-3674.77,0.00050136,31]
[312662164,1706141483201,-3124.04,0.00050136,31]
[312662165,1706141483211,-1845.53,0.00050136,31]
[312662166,1706141483219,-698.55,0.00050136,31]
[312662167,1706141483229,-500.0,0.00050136,31]
[312662168,1706141483238,-500.0,0.00050136,31]
[312662169,1706141483247,-500.0,0.00050136,31]
[312662170,1706141483256,-3836.74,0.00050136,5]
[312662171,1706141483266,-500.0,0.00050136,31]
[312662172,1706141483279,-1206.46,0.00050136,31]
[312662173,1706141483289,-500.0,0.00050136,31]
[312662174,1706141483304,-500.0,0.00050136,31]
[312662175,1706141483315,-1295.76,0.00050136,31]
[312662176,1706141483325,-500.0,0.00050136,31]
[312662177,1706141483334,-500.0,0.00050136,31]
[312662178,1706141483343,-355.96175915,0.00050136,31]
[312662179,1706141483352,-766.32,0.00050136,31]
[312662180,1706141483361,-500.0,0.00050136,31]
[312662181,1706141483371,-944.79,0.00050136,31]
[312662182,1706141483380,-585.71,0.00050136,31]
[312662183,1706141483389,-549.96098053,0.00050136,31]
[312662184,1706141483398,-646.31546724,0.00050136,31]
[312662185,1706141483408,-5283.49,0.00050136,5]
[312662186,1706141483417,-500.0,0.00050136,31]
[312662187,1706141483426,-500.0,0.00050136,31]
[312662188,1706141483436,-500.0,0.00050136,31]
[312662189,1706141483445,-718.1,0.00050136,31]
[312662190,1706141483455,-500.0,0.00050136,31]
[312662191,1706141483466,-966.39,0.00050136,31]
[312662192,1706141483475,-500.0,0.00050136,31]
[312662193,1706141483484,-1006.46,0.00050136,31]
[312662194,1706141483494,-517.29,0.00050136,31]
[312662195,1706141483504,-8715.7,0.00050136,31]
[312662196,1706141483514,-567.82,0.00050136,31]
[312662197,1706141483523,-608.48,0.00050136,31]
[312662198,1706141483533,-500.0,0.00050136,31]
[312662199,1706141483542,-500.0,0.00050136,31]
[312662200,1706141483551,-500.0,0.00050136,31]
[312662201,1706141483561,-5784.02,0.00050136,31]
[312662202,1706141483570,-500.0,0.00050136,31]
[312662203,1706141483579,-672.35,0.00050136,31]
[312662204,1706141483588,-719.02,0.00050136,31]
[312662205,1706141483598,-660.52,0.00050136,31]
[312662206,1706141483607,-571.27,0.00050136,31]
[312662207,1706141483616,-500.0,0.00050136,31]
[312662208,1706141483627,-500.0,0.00050136,31]
[312662209,1706141483638,-501.1814769,0.00050136,31]
[312662210,1706141483647,-500.0,0.00050136,31]
[312662211,1706141483657,-681.13,0.00050136,31]
[312662212,1706141483668,-500.0,0.00050136,31]
[312662213,1706141483678,-500.0,0.00050136,31]
[312662214,1706141483688,-500.0,0.00050136,31]
[312662215,1706141483697,-687.75,0.00050136,31]
[312662216,1706141483706,-454.14026856,0.00050136,31]
[312662217,1706141483715,-742.38,0.00050136,31]
[312662218,1706141483724,-2393.75,0.00050136,31]
[312662219,1706141483734,-500.0,0.00050136,31]
[312662220,1706141483745,-500.0,0.00050136,31]
[312662221,1706141483755,-5066.61,0.00050136,31]
[312662222,1706141483763,-500.0,0.00050136,31]
[312662223,1706141483773,-500.0,0.00050136,31]
[312662224,1706141483784,-572.67,0.00050136,31]
[312662225,1706141483794,-500.0,0.00050136,31]
[312662226,1706141483803,-500.0,0.00050136,31]
[312662227,1706141483813,-2453.54,0.00050136,31]
[312662228,1706141483822,-500.0,0.00050136,31]
[312662229,1706141483831,-2701.77,0.00050136,31]
[312662230,1706141483840,-500.0,0.00050136,31]
[312662231,1706141483849,-500.0,0.00050136,31]
[312662232,1706141483858,-580.27,0.00050136,31]
[312662233,1706141483867,-584.5,0.00050136,31]
[312662234,1706141483876,-500.0,0.00050136,31]
[312662235,1706141483885,-500.0,0.00050136,31]
[312662236,1706141483894,-414.22490664,0.00050136,31]
[312662237,1706141483904,-1141.79,0.00050136,31]
[312662238,1706141483913,-1360.18,0.00050136,31]
[312662239,1706141483923,-1000.0,0.00050136,2]
[312662240,1706141483933,-543.89,0.00050136,31]
[312662241,1706141483942,-693.55,0.00050136,31]
[312662242,1706141483952,-683.16,0.00050136,31]
[312662243,1706141483961,-500.0,0.00050136,31]
[312662244,1706141483970,-500.0,0.00050136,31]
[312662245,1706141483979,-500.0,0.00050136,31]
[312662246,1706141483988,-500.0,0.00050136,31]
[312662247,1706141483998,-835.92,0.00050136,31]
[312662248,1706141484007,-608.94,0.00050136,31]
[312662249,1706141484016,-1468.94,0.00050136,31]
[312662250,1706141484026,-578.45,0.00050136,31]
[312662251,1706141484035,-500.0,0.00050136,31]
[312662252,1706141484045,-1000.0,0.00050136,30]
[312662253,1706141484054,-500.0,0.00050136,31]
[312662254,1706141484066,-552.79,0.00050136,31]
[312662255,1706141484075,-706.67,0.00050136,31]
[312662256,1706141484084,-2066.55,0.00050136,31]
[312662257,1706141484094,-540.87,0.00050136,31]
[312662258,1706141484104,-500.0,0.00050136,31]
[312662259,1706141484113,-582.15,0.00050136,31]
[312662260,1706141484122,-500.0,0.00050136,31]
[312662261,1706141484131,-639.06,0.00050136,31]
[312662262,1706141484140,-500.0,0.00050136,31]
[312662263,1706141484149,-500.0,0.00050136,31]
[312662264,1706141484158,-740.88,0.00050136,31]
[312662265,1706141484167,-700.44,0.00050136,31]
[312662266,1706141484176,-500.0,0.00050136,31]
[312662267,1706141484185,-500.0,0.00050136,31]
[312662268,1706141484194,-500.0,0.00050136,31]
[312662269,1706141484204,-537.04,0.00050136,31]
[312662270,1706141484213,-500.0,0.00050136,31]
[312662271,1706141484222,-751.1,0.00050136,31]
[312662272,1706141484233,-677.43,0.00050136,31]
[312662273,1706141484242,-500.0,0.00050136,31]
[312662274,1706141484251,-2280.94,0.00050136,31]
[312662275,1706141484261,-500.0,0.00050136,31]
[312662276,1706141484271,-500.0,0.00050136,31]
[312662277,1706141484281,-500.0,0.00050136,31]
[312662278,1706141484290,-547.24,0.00050136,31]
[312662279,1706141484301,-500.0,0.00050136,31]
[312662280,1706141484314,-500.0,0.00050136,31]
[312662281,1706141484323,-500.0,0.00050136,31]
[312662282,1706141484332,-1060.9,0.00050136,31]
[312662283,1706141484341,-581.01,0.00050136,31]
[312662284,1706141484349,-500.0,0.00050136,31]
[312662285,1706141484359,-500.0,0.00050136,31]
[312662286,1706141484368,-537.1,0.00050136,31]
[312662287,1706141484378,-500.0,0.00050136,31]
[312662288,1706141484387,-778.86,0.00050136,31]
[312662289,1706141484396,-857.21,0.00050136,31]
[312662290,1706141484406,-500.0,0.00050136,31]
[312662291,1706141484415,-1735.79,0.00050136,31]
[312662292,1706141484424,-500.0,0.00050136,31]
[312662293,1706141484433,-608.69,0.00050136,31]
[312662294,1706141484442,-500.0,0.00050136,31]
[312662295,1706141484451,-606.25,0.00050136,31]
[312662296,1706141484460,-645.15,0.00050136,31]
[312662297,1706141484472,-500.0,0.00050136,31]
[312662298,1706141484482,-500.0,0.00050136,31]
[312662299,1706141484491,-500.0,0.00050136,31]
[312662300,1706141484501,-712.54,0.00050136,31]
[312662301,1706141484511,-1073.61,0.00050136,31]
[312662302,1706141484521,-432.40162849,0.00050136,31]
[312662303,1706141484531,-660.57,0.00050136,31]
[312662304,1706141484541,-1320.68,0.00050136,31]
[312662305,1706141484551,-4966.08,0.00050136,31]
[312662306,1706141484561,-655.7,0.00050136,31]
[312662307,1706141484571,-500.0,0.00050136,31]
[312662308,1706141484580,-992.0,0.00050136,31]
[312662309,1706141484590,-500.0,0.00050136,31]
[312662310,1706141484600,-1315.35,0.00050136,31]
[312662311,1706141484609,-500.0,0.00050136,31]
[312662312,1706141484619,-500.0,0.00050136,31]
[312662313,1706141484628,-500.0,0.00050136,31]
[312662314,1706141484638,-796.46,0.00050136,31]
[312662315,1706141484647,-500.0,0.00050136,31]
[312662316,1706141484658,-3061.04,0.00050136,31]
[312662317,1706141484668,-500.0,0.00050136,31]
[312662318,1706141484678,-500.0,0.00050136,31]
[312662319,1706141484687,-564.19,0.00050136,31]
[312662320,1706141484697,-860.59,0.00050136,31]
[312662321,1706141484707,-500.0,0.00050136,31]
[312662322,1706141484716,-553.53,0.00050136,31]
[312662323,1706141484726,-500.0,0.00050136,31]
[312662324,1706141484737,-2426.6,0.00050136,31]
[312662325,1706141484747,-500.0,0.00050136,31]
[312662326,1706141484757,-500.0,0.00050136,31]
[312662327,1706141484767,-547.26,0.00050136,31]
[312662328,1706141484776,-500.0,0.00050136,31]
[312662329,1706141484786,-1086.36,0.00050136,31]
[312662330,1706141484796,-959.04,0.00050136,31]
[312662331,1706141484806,-649.59,0.00050136,31]
[312662332,1706141484817,-500.0,0.00050136,31]
[312662333,1706141484828,-703.22,0.00050136,31]
[312662334,1706141484838,-600.26,0.00050136,31]
[312662335,1706141484848,-740.74,0.00050136,31]
[312662336,1706141484858,-787.85,0.00050136,31]
[312662337,1706141484869,-730.54,0.00050136,31]
[312662338,1706141484879,-500.0,0.00050136,31]
[312662339,1706141484889,-765.5,0.00050136,31]
[312662340,1706141484899,-500.0,0.00050136,31]
[312662341,1706141484908,-500.0,0.00050136,31]
[312662342,1706141484918,-599.29,0.00050136,31]
[312662343,1706141484927,-500.0,0.00050136,31]
[312662344,1706141484937,-737.72,0.00050136,31]
[312662345,1706141484947,-500.55,0.00050136,31]
[312662346,1706141484957,-500.0,0.00050136,31]
[312662347,1706141484966,-847.8,0.00050136,31]
[312662348,1706141484976,-500.0,0.00050136,31]
[312662349,1706141484986,-539.53,0.00050136,31]
[312662350,1706141484996,-501.79,0.00050136,31]
[312662351,1706141485006,-500.0,0.00050136,31]
[312662352,1706141485015,-714.81,0.00050136,31]
[312662353,1706141485024,-560.58,0.00050136,31]
[312662354,1706141485034,-765.11,0.00050136,31]
[312662355,1706141485044,-500.0,0.00050136,31]
[312662356,1706141485054,-5000.0,0.00050136,14]
[312662357,1706141485065,-500.0,0.00050136,31]
[312662358,1706141485074,-500.0,0.00050136,31]
[312662359,1706141485085,-1451.54,0.00050136,31]
[312662360,1706141485094,-500.0,0.00050136,31]
[312662361,1706141485104,-764.66,0.00050136,31]
[312662362,1706141485114,-673.27,0.00050136,31]
[312662363,1706141485124,-1105.43,0.00050136,31]
[312662364,1706141485134,-512.3782181,0.00050136,31]
[312662365,1706141485144,-3144.18,0.00050136,31]
[312662366,1706141485153,-544.99830677,0.00050136,31]
[312662367,1706141485163,-500.0,0.00050136,31]
[312662368,1706141485172,-500.0,0.00050136,31]
[312662369,1706141485182,-500.0,0.00050136,31]
[312662370,1706141485191,-748.16,0.00050136,31]
[312662371,1706141485200,-678.69,0.00050136,31]
[312662372,1706141485211,-500.0,0.00050136,120]
[312662373,1706141485220,-500.0,0.00050136,31]
[312662374,1706141485230,-548.31,0.00050136,31]
[312662375,1706141485239,-532.81,0.00050136,31]
[312662376,1706141485249,-500.0,0.00050136,31]
[312662377,1706141485258,-515.5,0.00050136,31]
[312662378,1706141485267,-792.67,0.00050136,31]
[312662379,1706141485278,-500.0,0.00050136,31]
[312662380,1706141485288,-500.0,0.00050136,31]
[312662381,1706141485299,-1247.69,0.00050136,31]
[312662382,1706141485309,-612.72,0.00050136,31]
[312662383,1706141485320,-500.0,0.00050136,31]
[312662384,1706141485331,-1295.4,0.00050136,31]
[312662385,1706141485340,-820.44,0.00050136,31]
[312662386,1706141485350,-500.0,0.00050136,31]
[312662387,1706141485360,-939.98,0.00050136,31]
[312662388,1706141485370,-689.9,0.00050136,31]
[312662389,1706141485380,-500.0,0.00050136,31]
[312662390,1706141485390,-500.0,0.00050136,31]
[312662391,1706141485400,-650.74,0.00050136,31]
[312662392,1706141485409,-3710.41,0.00050136,31]
[312662393,1706141485419,-594.93,0.00050136,2]
[312662394,1706141485428,-178.23616883,0.00050136,31]
[312662395,1706141485438,-646.07,0.00050136,31]
[312662396,1706141485447,-500.0,0.00050136,31]
[312662397,1706141485457,-500.0,0.00050136,31]
[312662398,1706141485467,-500.0,0.00050136,31]
[312662399,1706141485477,-2728.94,0.00050136,31]
[312662400,1706141485487,-500.0,0.00050136,31]
[312662401,1706141485497,-534.36523815,0.00050136,31]
[312662402,1706141485506,-1281.32,0.00050136,31]
[312662403,1706141485516,-1822.59,0.00050136,2]
[312662404,1706141485526,-500.0,0.00050136,31]
[312662405,1706141485535,-500.0,0.00050136,31]
[312662406,1706141485545,-500.0,0.00050136,31]
[312662407,1706141485555,-500.0,0.00050136,31]
[312662408,1706141485565,-500.0,0.00050136,31]
[312662409,1706141485575,-500.0,0.00050136,31]
[312662410,1706141485584,-1129.79,0.00050136,31]
[312662411,1706141485594,-724.18,0.00050136,31]
[312662412,1706141485604,-605.74,0.00050136,31]
[312662413,1706141485614,-500.0,0.00050136,31]
[312662414,1706141485624,-500.0,0.00050136,31]
[312662415,1706141485633,-500.0,0.00050136,31]
[312662416,1706141485643,-824.96,0.00050136,31]
[312662417,1706141485653,-887.42,0.00050136,31]
[312662418,1706141485662,-500.0,0.00050136,31]
[312662419,1706141485672,-500.0,0.00050136,31]
[312662420,1706141485681,-500.0,0.00050136,31]
[312662421,1706141485691,-866.53,0.00050136,31]
[312662422,1706141485701,-510.96,0.00050136,31]
[312662423,1706141485711,-757.86,0.00050136,2]
[312662424,1706141485721,-500.0,0.00050136,31]
[312662425,1706141485735,-500.0,0.00050136,31]
[312662426,1706141485744,-500.0,0.00050136,31]
[312662427,1706141485754,-887.79,0.00050136,31]
[312662428,1706141485766,-566.99,0.00050136,31]
[312662429,1706141485775,-500.0,0.00050136,31]
[312662430,1706141485785,-167.05741097,0.00050138,60]
[312662431,1706141485795,-647.69,0.00050191,120]
[312662432,1706141485805,-160.04158346,0.000502,30]
[312662433,1706141485816,-269.63746183,0.000502,120]
[312662434,1706141485826,-203.39231776,0.0005022,120]
[312662435,1706141485836,-156.43151779,0.00050228,60]
[312662436,1706141485847,-1196.18486789,0.00050239,14]
[312662437,1706141485859,-150.0,0.00050267,30]
[312662438,1706141485868,-162.27493029,0.000503,60]
[312662439,1706141485878,-176.58520058,0.00050307,60]
[312662440,1706141485888,-432.40353136,0.00050312,60]
[312662441,1706141485897,-153.21386404,0.00050327,60]
[312662442,1706141485907,-150.0,0.00050336,10]
[312662443,1706141485917,-176.58520058,0.00050352,60]
[312662444,1706141485927,-167.31571157,0.00050365,60]
[312662445,1706141485937,-584.90819405,0.00050406,60]
[312662446,1706141485948,-500.0,0.0005041,31]
[312662447,1706141485958,-500.0,0.0005041,31]
[312662448,1706141485968,-500.0,0.0005041,31]
[312662449,1706141485978,-500.0,0.0005041,31]
[312662450,1706141485987,-500.0,0.0005041,31]
[312662451,1706141485997,-500.0,0.0005041,31]
[312662452,1706141486007,-500.0,0.0005041,31]
[312662453,1706141486017,-500.0,0.0005041,31]
[312662454,1706141486027,-571.87,0.0005041,31]
[312662455,1706141486036,-500.0,0.0005041,31]
[312662456,1706141486046,-500.0,0.0005041,31]
[312662457,1706141486056,-500.0,0.0005041,31]
[312662458,1706141486068,-500.0,0.0005041,31]
[312662459,1706141486078,-500.0,0.0005041,31]
[312662460,1706141486087,-500.0,0.0005041,31]
[312662461,1706141486096,-500.0,0.0005041,31]
[312662462,1706141486106,-500.0,0.0005041,31]
[312662463,1706141486115,-500.0,0.0005041,31]
[312662464,1706141486125,-500.0,0.0005041,31]
[312662465,1706141486134,-500.0,0.0005041,31]
[312662466,1706141486144,-500.0,0.0005041,31]
[312662467,1706141486153,-500.0,0.0005041,31]
[312662468,1706141486163,-500.0,0.0005041,31]
[312662469,1706141486172,-500.0,0.0005041,31]
[312662470,1706141486182,-500.0,0.0005041,31]
[312662471,1706141486192,-588.56213029,0.0005041,31]
[312662472,1706141486201,-500.0,0.0005041,31]
[312662473,1706141486211,-500.0,0.0005041,31]
[312662474,1706141486221,-500.0,0.0005041,31]
[312662475,1706141486231,-530.27869366,0.0005041,31]
[312662476,1706141486240,-250.0,0.0005041,31]
[312662477,1706141486250,-500.0,0.0005041,31]
[312662478,1706141486260,-500.0,0.0005041,31]
[312662479,1706141486270,-500.0,0.0005041,31]
[312662480,1706141486281,-500.0,0.0005041,31]
[312662481,1706141486291,-500.0,0.0005041,31]
[312662482,1706141486303,-500.0,0.0005041,31]
[312662483,1706141486314,-500.0,0.0005041,31]
[312662484,1706141486325,-500.0,0.0005041,31]
[312662485,1706141486335,-500.0,0.0005041,31]
[312662486,1706141486345,-500.0,0.0005041,31]
[312662487,1706141486355,-500.0,0.0005041,31]
[312662488,1706141486364,-500.0,0.0005041,31]
[312662489,1706141486375,-569.3,0.0005041,31]
[312662490,1706141486385,-547.01,0.0005041,31]
[312662491,1706141486395,-500.0,0.0005041,30]
[312662492,1706141486405,-500.0,0.0005041,31]
[312662493,1706141486415,-500.0,0.0005041,31]
[312662494,1706141486424,-500.0,0.0005041,31]
[312662495,1706141486434,-500.0,0.0005041,31]
[312662496,1706141486444,-226.99417359,0.0005041,31]
[312662497,1706141486453,-510.64,0.0005041,31]
[312662498,1706141486463,-500.0,0.0005041,31]
[312662499,1706141486472,-1000.0,0.0005041,7]
[312662500,1706141486482,-500.0,0.0005041,10]
[312662501,1706141486492,-500.0,0.0005041,31]
[312662502,1706141486502,-500.0,0.0005041,31]
[312662503,1706141486512,-500.0,0.0005041,31]
[312662504,1706141486522,-381.96794611,0.0005041,31]
[312662505,1706141486531,-500.0,0.0005041,31]
[312662506,1706141486541,-500.0,0.0005041,31]
[312662507,1706141486551,-168.93680582,0.0005041,31]
[312662508,1706141486562,-527.19903318,0.0005041,31]
[312662509,1706141486571,-500.0,0.0005041,31]
[312662510,1706141486581,-754.82,0.0005041,31]
[312662511,1706141486590,-500.0,0.0005041,31]
[312662512,1706141486600,-500.0,0.0005041,31]
[312662513,1706141486610,-917.61,0.0005041,31]
[312662514,1706141486619,-500.0,0.0005041,31]
[312662515,1706141486629,-500.0,0.0005041,31]
[312662516,1706141486639,-500.0,0.0005041,31]
[312662517,1706141486840,-500.0,0.0005041,2]
[312662518,1706141486850,-500.0,0.0005041,31]
[312662519,1706141486859,-500.0,0.0005041,31]
[312662520,1706141486868,-665.93,0.0005041,31]
[312662521,1706141486877,-702.69,0.0005041,31]
[312662522,1706141486887,-500.0,0.0005041,31]
[312662523,1706141486897,-500.0,0.0005041,31]
[312662524,1706141486907,-500.0,0.0005041,31]
[312662525,1706141486917,-619.19,0.0005041,31]
[312662526,1706141486927,-953.39,0.0005041,31]
[312662527,1706141486936,-500.0,0.0005041,2]
[312662528,1706141486946,-500.0,0.0005041,31]
[312662529,1706141486955,-500.0,0.0005041,31]
[312662530,1706141486965,-500.0,0.0005041,31]
[312662531,1706141486974,-500.0,0.0005041,31]
[312662532,1706141486983,-500.0,0.0005041,31]
[312662533,1706141486992,-500.0,0.0005041,31]
[312662534,1706141487001,-500.0,0.0005041,31]
[312662535,1706141487010,-500.0,0.0005041,31]
[312662536,1706141487020,-500.0,0.0005041,31]
[312662537,1706141487030,-500.0,0.0005041,31]
[312662538,1706141487039,-500.0,0.0005041,31]
[312662539,1706141487049,-629.99247385,0.0005041,31]
[312662540,1706141487059,-500.0,0.0005041,31]
[312662541,1706141487069,-523.13,0.0005041,31]
[312662542,1706141487078,-500.0,0.0005041,31]
[312662543,1706141487086,-500.0,0.0005041,31]
[312662544,1706141487095,-500.0,0.0005041,31]
[312662545,1706141487105,-500.0,0.0005041,31]
[312662546,1706141487114,-500.0,0.0005041,31]
[312662547,1706141487123,-500.0,0.0005041,31]
[312662548,1706141487133,-500.0,0.0005041,31]
[312662549,1706141487142,-539.3,0.0005041,31]
[312662550,1706141487151,-500.0,0.0005041,31]
[312662551,1706141487160,-500.0,0.0005041,31]
[312662552,1706141487170,-500.0,0.0005041,31]
[312662553,1706141487179,-500.0,0.0005041,31]
[312662554,1706141487188,-500.0,0.0005041,31]
[312662555,1706141487197,-500.0,0.0005041,31]
[312662556,1706141487206,-500.0,0.0005041,31]
[312662557,1706141487216,-500.0,0.0005041,31]
[312662558,1706141487225,-557.24,0.0005041,31]
[312662559,1706141487234,-500.0,0.0005041,31]
[312662560,1706141487243,-500.0,0.0005041,31]
[312662561,1706141487253,-500.0,0.0005041,31]
[312662562,1706141487262,-500.0,0.0005041,31]
[312662563,1706141487272,-500.0,0.0005041,31]
[312662564,1706141487281,-500.0,0.0005041,31]
[312662565,1706141487290,-500.0,0.0005041,31]
[312662566,1706141487301,-602.26864004,0.0005041,31]
[312662567,1706141487310,-500.0,0.0005041,31]
[312662568,1706141487320,-500.0,0.0005041,31]
[312662569,1706141487329,-500.0,0.0005041,31]
[312662570,1706141487338,-500.0,0.0005041,31]
[312662571,1706141487348,-596.67,0.0005041,31]
[312662572,1706141487357,-500.0,0.0005041,31]
[312662573,1706141487366,-500.0,0.0005041,31]
[312662574,1706141487375,-500.0,0.0005041,31]
[312662575,1706141487385,-500.0,0.0005041,31]
[312662576,1706141487395,-500.0,0.0005041,31]
[312662577,1706141487404,-326.13290393,0.0005041,31]
[312662578,1706141487414,-500.0,0.0005041,31]
[312662579,1706141487423,-500.0,0.0005041,10]
[312662580,1706141487433,-456.1565196,0.0005041,31]
[312662581,1706141487442,-650.62,0.0005041,31]
[312662582,1706141487451,-530.57,0.0005041,31]
[312662583,1706141487461,-590.77,0.0005041,31]
[312662584,1706141487470,-500.0,0.0005041,31]
[312662585,1706141487480,-500.0,0.0005041,31]
[312662586,1706141487489,-500.0,0.0005041,31]
[312662587,1706141487498,-500.0,0.0005041,31]
[312662588,1706141487508,-500.0,0.0005041,31]
[312662589,1706141487517,-500.0,0.0005041,31]
[312662590,1706141487527,-529.72,0.0005041,31]
[312662591,1706141487537,-500.0,0.0005041,31]
[312662592,1706141487547,-537.66,0.0005041,31]
[312662593,1706141487556,-500.0,0.0005041,31]
[312662594,1706141487568,-500.0,0.0005041,31]
[312662595,1706141487577,-668.66,0.0005041,31]
[312662596,1706141487586,-500.0,0.0005041,31]
[312662597,1706141487596,-500.0,0.0005041,31]
[312662598,1706141487605,-500.0,0.0005041,31]
[312662599,1706141487614,-500.0,0.0005041,31]
[312662600,1706141487623,-992.14,0.0005041,120]
[312662601,1706141487632,-500.0,0.0005041,31]
[312662602,1706141487641,-500.0,0.0005041,31]
[312662603,1706141487650,-500.0,0.0005041,31]
[312662604,1706141487659,-502.97,0.0005041,31]
[312662605,1706141487669,-500.0,0.0005041,31]
[312662606,1706141487678,-500.0,0.0005041,31]
[312662607,1706141487687,-500.0,0.0005041,31]
[312662608,1706141487697,-500.0,0.0005041,31]
[312662609,1706141487706,-441.817826,0.0005041,31]
[312662610,1706141487716,-500.0,0.0005041,31]
[312662611,1706141487725,-500.0,0.0005041,31]
[312662612,1706141487734,-500.0,0.0005041,31]
[312662613,1706141487745,-500.0,0.0005041,31]
[312662614,1706141487755,-500.0,0.0005041,31]
[312662615,1706141487765,-500.0,0.0005041,31]
[312662616,1706141487774,-626.76,0.0005041,31]
[312662617,1706141487784,-500.0,0.0005041,31]
[312662618,1706141487793,-524.2,0.0005041,31]
[312662619,1706141487802,-500.0,0.0005041,31]